bitfinex/quotes_BTCUSD_20240906
["timestamp","ask_amount","ask_price","bid_price","bid_amount"]
[1725611760605,0.82384106,55948.0,55947.0,0.31970232]
[1725611760811,0.82384106,55948.0,55947.0,0.08360232]
[1725611761041,1.18532106,55948.0,55947.0,0.08360232]
[1725611761245,1.42915296,55948.0,55947.0,0.08360232]
[1725611761486,1.19532106,55948.0,55947.0,0.07407269]
[1725611761705,1.19832106,55948.0,55947.0,0.30717269]
[1725611761926,0.83884106,55948.0,55947.0,0.30717269]
[1725611762180,0.83884106,55948.0,55947.0,0.31670232]
[1725611762652,0.82884106,55948.0,55947.0,0.31670232]
[1725611763084,0.007,55948.0,55947.0,0.31670232]
[1725611763328,0.007,55948.0,55947.0,0.49544232]
[1725611763795,0.007816,55948.0,55947.0,1.21040432]
[1725611764788,0.007816,55948.0,55947.0,1.56788532]
[1725611765277,0.007816,55948.0,55947.0,1.21040432]
[1725611769900,0.003816,55948.0,55947.0,1.21040432]
[1725611770805,0.004816,55948.0,55947.0,1.62374718]
[1725611771036,0.001816,55948.0,55947.0,1.98122818]
[1725611771256,0.001816,55948.0,55947.0,2.01622818]
[1725611771257,0.002816,55948.0,55947.0,2.01622818]
[1725611771480,0.001816,55948.0,55947.0,2.00422818]
[1725611771708,0.001816,55948.0,55947.0,2.0576593]
[1725611771942,0.002816,55948.0,55947.0,2.01722818]
[1725611772187,0.000816,55948.0,55947.0,2.00022818]
[1725611772413,0.000816,55948.0,55947.0,2.01422818]
[1725611772648,0.002816,55948.0,55947.0,2.01822818]
[1725611773103,0.001816,55948.0,55947.0,2.01422818]
[1725611773335,0.002816,55948.0,55947.0,2.01822818]
[1725611773825,0.002816,55948.0,55947.0,2.37570918]
[1725611774063,0.05626129,55950.0,55949.0,1.15267]
[1725611774287,0.05626129,55950.0,55949.0,1.88412202]
[1725611774523,0.05626129,55950.0,55949.0,2.25111533]
[1725611775910,0.05726129,55950.0,55949.0,2.26511533]
[1725611776138,0.05726129,55950.0,55949.0,2.31858667]
[1725611776364,0.05826129,55950.0,55949.0,2.33258667]
[1725611776592,0.05826129,55950.0,55949.0,2.26911533]
[1725611777759,0.05826129,55950.0,55949.0,2.27911533]
[1725611780601,0.05826129,55950.0,55949.0,1.87864733]
[1725611782009,0.05826129,55950.0,55949.0,1.88864733]
[1725611782218,0.05826129,55950.0,55949.0,1.91164733]
[1725611783147,0.05826129,55950.0,55949.0,1.90164733]
[1725611783655,0.05826129,55950.0,55949.0,1.91164733]
[1725611784796,0.05826129,55950.0,55949.0,1.90164733]
[1725611785276,0.05826129,55950.0,55949.0,1.91164733]
[1725611785979,0.05826129,55950.0,55949.0,1.90164733]
[1725611786229,0.05826129,55950.0,55949.0,1.91164733]
[1725611786486,0.05826129,55950.0,55949.0,1.90164733]
[1725611786729,0.05826129,55950.0,55949.0,1.91164733]
[1725611787200,0.05826129,55950.0,55949.0,1.42117933]
[1725611787885,0.05826129,55950.0,55949.0,1.42281133]
[1725611788109,0.05907729,55950.0,55949.0,1.42281133]
[1725611788831,0.05907729,55950.0,55949.0,1.31281133]
[1725611790887,0.05907729,55950.0,55949.0,0.29336437]
[1725611791099,0.17207729,55950.0,55949.0,0.29336437]
[1725611791608,0.17207729,55950.0,55949.0,0.11463037]
[1725611791609,0.18886963,55950.0,55949.0,0.11463037]
[1725611791823,1.25889557,55950.0,55949.0,0.02515731]
[1725611792038,1.61635757,55950.0,55949.0,0.02515731]
[1725611792301,1.61635757,55950.0,55949.0,0.015632]
[1725611792771,1.61635757,55950.0,55949.0,0.029632]
[1725611792772,1.71756708,55950.0,55949.0,0.029632]
[1725611793445,1.71656708,55950.0,55949.0,0.015632]
[1725611793668,1.71656708,55950.0,55949.0,0.029632]
[1725611794136,1.71656708,55950.0,55949.0,0.015632]
[1725611794137,1.25889557,55950.0,55949.0,0.015632]
[1725611794361,0.10074057,55950.0,55949.0,0.184366]
[1725611794575,0.10074057,55950.0,55949.0,0.541834]
[1725611794792,0.07386963,55950.0,55949.0,0.19689131]
[1725611795037,0.07386963,55950.0,55949.0,0.62874831]
[1725611795305,0.1007395,55950.0,55949.0,0.62174831]
[1725611795527,0.07486963,55950.0,55949.0,0.62774831]
[1725611795743,0.05807729,55950.0,55949.0,0.62774831]
[1725611795968,0.07387094,55950.0,55949.0,0.62174831]
[1725611796184,0.07387094,55950.0,55949.0,0.08554631]
[1725611796418,0.28147347,55950.0,55949.0,0.08554631]
[1725611796643,0.28147347,55950.0,55949.0,0.09354631]
[1725611796890,0.63893547,55950.0,55949.0,0.08554631]
[1725611797335,0.6389355,55950.0,55949.0,0.09554631]
[1725611797566,0.7532355,55950.0,55949.0,0.10354631]
[1725611798258,1.1206975,55950.0,55949.0,0.10354631]
[1725611798474,1.09382594,55950.0,55949.0,0.10354631]
[1725611798685,1.09382594,55950.0,55949.0,0.094021]
[1725611798899,1.09382594,55950.0,55949.0,0.10354631]
[1725611799864,1.09382594,55950.0,55949.0,0.094021]
[1725611800499,1.09382594,55950.0,55949.0,0.10354631]
[1725611800951,0.37690194,55950.0,55949.0,0.10354631]
[1725611801176,0.37690194,55950.0,55949.0,0.28228031]
[1725611801177,0.07487089,55950.0,55949.0,0.28228031]
[1725611801394,0.07487089,55950.0,55949.0,0.63974831]
[1725611802255,0.07487089,55950.0,55949.0,1.12861631]
[1725611802688,0.07487075,55950.0,55949.0,1.12861631]
[1725611804331,0.05807729,55950.0,55949.0,1.77209527]
[1725611804560,0.05807729,55950.0,55949.0,1.79509527]
[1725611804815,0.05807729,55950.0,55949.0,2.15256327]
[1725611805281,0.05707729,55950.0,55949.0,2.14456327]
[1725611805501,0.05707729,55950.0,55949.0,1.76409527]
[1725611805724,0.05807729,55950.0,55949.0,1.77809527]
[1725611806242,0.05807729,55950.0,55949.0,1.76809527]
[1725611806478,0.05807729,55950.0,55949.0,1.78209527]
[1725611806687,0.05807729,55950.0,55949.0,1.76809527]
[1725611806913,0.05707729,55950.0,55949.0,1.75409527]
[1725611807166,0.05707729,55950.0,55949.0,1.78209527]
[1725611807591,0.05707729,55950.0,55949.0,1.76809527]
[1725611807935,0.05707729,55950.0,55949.0,1.78209527]
[1725611812067,0.05707729,55950.0,55949.0,2.16256327]
[1725611812946,0.05707729,55950.0,55949.0,2.14856327]
[1725611813141,0.05707729,55950.0,55949.0,2.16256327]
[1725611813389,0.05707729,55950.0,55949.0,2.14856327]
[1725611813617,0.05707729,55950.0,55949.0,2.13456327]
[1725611813846,0.05707729,55950.0,55949.0,2.16256327]
[1725611814297,0.05707729,55950.0,55949.0,2.14856327]
[1725611814491,0.05707729,55950.0,55949.0,2.16256327]
[1725611815655,0.18069,55963.0,55949.0,2.16256327]
[1725611815656,0.357341,55969.0,55956.0,0.357421]
[1725611815870,0.357341,55969.0,55959.0,0.1787]
[1725611815871,0.178693,55962.0,55959.0,0.1787]
[1725611816142,0.2223459,55963.0,55960.0,0.178698]
[1725611816358,0.01679073,55962.0,55960.0,0.18819953]
[1725611816609,0.357341,55969.0,55961.0,0.357391]
[1725611816842,0.178676,55967.0,55964.0,0.178684]
[1725611817072,0.178676,55967.0,55962.0,0.357381]
[1725611817073,0.178684,55965.0,55962.0,0.1881892]
[1725611817293,0.178698,55961.0,55958.0,0.178704]
[1725611817512,0.01679041,55960.0,55958.0,0.178704]
[1725611817732,0.01679041,55959.0,55958.0,0.536115]
[1725611818193,0.01679041,55959.0,55958.0,0.60798254]
[1725611819527,0.55289641,55959.0,55958.0,0.07186754]
[1725611820010,0.55289641,55959.0,55958.0,0.08586754]
[1725611820252,0.57976305,55959.0,55958.0,0.08586754]
[1725611820489,0.57976305,55959.0,55958.0,0.09986754]
[1725611821635,0.93716705,55959.0,55958.0,0.09986754]
[1725611821901,1.63334325,55959.0,55958.0,0.028]
[1725611822198,1.73334325,55959.0,55958.0,0.028]
[1725611822444,2.09075718,55959.0,55958.0,0.028]
[1725611822663,2.09075718,55959.0,55958.0,0.014]
[1725611822882,0.903655,55950.0,55949.0,0.001632]
[1725611823103,1.17732198,55950.0,55949.0,0.001632]
[1725611823343,1.17732198,55950.0,55949.0,0.01115731]
[1725611823564,1.17732198,55950.0,55949.0,0.001632]
[1725611824273,1.17732198,55950.0,55949.0,0.012632]
[1725611825158,1.05132198,55950.0,55949.0,0.08717971]
[1725611825384,1.007655,55950.0,55949.0,0.08717971]
[1725611825617,1.0513227,55950.0,55949.0,0.08717971]
[1725611825871,1.0513227,55950.0,55949.0,0.09670502]
[1725611826066,1.0513227,55950.0,55949.0,0.08717971]
[1725611826431,1.0513227,55950.0,55949.0,0.03115731]
[1725611826632,1.4087847,55950.0,55949.0,0.03115731]
[1725611826839,1.0513227,55950.0,55949.0,0.021632]
[1725611828933,1.4087847,55950.0,55949.0,0.021632]
[1725611830324,1.50899421,55950.0,55949.0,0.021632]
[1725611830561,1.99325621,55950.0,55949.0,0.021632]
[1725611830791,2.09325621,55950.0,55949.0,0.021632]
[1725611831484,2.09325621,55950.0,55949.0,0.012632]
[1725611831929,2.07644682,55950.0,55949.0,0.015632]
[1725611832175,2.09323326,55950.0,55949.0,0.015632]
[1725611832666,2.09323326,55950.0,55949.0,0.004632]
[1725611832667,1.73577126,55950.0,55949.0,0.004632]
[1725611832902,1.73577126,55950.0,55949.0,0.009632]
[1725611833139,1.73577126,55950.0,55949.0,0.006632]
[1725611833628,1.73577126,55950.0,55949.0,0.009632]
[1725611834071,2.09323326,55950.0,55949.0,0.009632]
[1725611834325,1.73577126,55950.0,55949.0,0.009632]
[1725611834863,2.09323326,55950.0,55949.0,0.009632]
[1725611836474,1.60897126,55950.0,55949.0,0.009632]
[1725611836923,1.60875619,55950.0,55949.0,0.009632]
[1725611837669,2.09801819,55950.0,55949.0,0.009632]
[1725611838852,2.05437344,55950.0,55949.0,0.009632]
[1725611839112,2.09800652,55950.0,55949.0,0.009632]
[1725611840138,2.53578635,55950.0,55949.0,0.009632]
[1725611840359,2.45546852,55950.0,55949.0,0.009632]
[1725611841099,2.08800652,55950.0,55949.0,0.006632]
[1725611841337,2.15652662,55950.0,55949.0,0.007632]
[1725611841620,2.47035554,55950.0,55949.0,0.007632]
[1725611841841,2.57369849,55950.0,55949.0,0.007632]
[1725611842067,2.43483544,55950.0,55949.0,0.001632]
[1725611842283,2.56869849,55950.0,55949.0,0.001632]
[1725611842535,2.43683544,55950.0,55949.0,0.002632]
[1725611842751,2.43483544,55950.0,55949.0,0.001632]
[1725611843045,2.47846259,55950.0,55949.0,0.001632]
[1725611843285,2.58745801,55950.0,55949.0,0.002632]
[1725611843515,2.48346259,55950.0,55949.0,0.002632]
[1725611843750,2.48546313,55950.0,55949.0,0.003632]
[1725611843975,2.4703952,55950.0,55949.0,0.002632]
[1725611844222,2.47424301,55950.0,55949.0,0.002632]
[1725611844467,2.20200598,55950.0,55949.0,0.003632]
[1725611844698,2.12178101,55950.0,55949.0,0.003632]
[1725611844937,1.98998101,55950.0,55949.0,0.003632]
[1725611845183,1.98998101,55950.0,55949.0,0.001632]
[1725611845184,1.98298101,55950.0,55949.0,0.001632]
[1725611845398,1.98498101,55950.0,55949.0,0.002632]
[1725611845868,1.98298101,55950.0,55949.0,0.001632]
[1725611846104,1.98498101,55950.0,55949.0,0.001632]
[1725611846348,1.98579701,55950.0,55949.0,0.001632]
[1725611846590,1.99079701,55950.0,55949.0,0.002632]
[1725611847003,1.98579701,55950.0,55949.0,0.001632]
[1725611847204,1.42933501,55950.0,55949.0,0.002632]
[1725611847998,1.42933501,55950.0,55949.0,0.001632]
[1725611847999,1.42433501,55950.0,55949.0,0.001632]
[1725611848202,1.42233501,55950.0,55949.0,0.001632]
[1725611848416,1.42433501,55950.0,55949.0,0.001632]
[1725611848672,1.52433501,55950.0,55949.0,0.001632]
[1725611851205,1.52433501,55950.0,55949.0,0.131532]
[1725611852332,1.4241255,55950.0,55949.0,0.131532]
[1725611852813,0.7092015,55950.0,55949.0,0.131532]
[1725611853032,0.69242162,55950.0,55949.0,0.32029941]
[1725611853292,0.59242162,55950.0,55949.0,0.3107741]
[1725611853531,0.59242162,55950.0,55949.0,0.32029941]
[1725611853767,0.59042162,55950.0,55949.0,0.32029941]
[1725611854025,0.04444369,55950.0,55949.0,0.32829941]
[1725611854242,0.04444369,55950.0,55949.0,2.01178027]
[1725611854243,0.01761031,55950.0,55949.0,2.01178027]
[1725611854497,0.000816,55950.0,55949.0,2.01178027]
[1725611854711,0.000816,55959.0,55958.0,1.352435]
[1725611854959,0.000816,55959.0,55958.0,1.96046604]
[1725611855199,0.000816,55959.0,55958.0,1.96997189]
[1725611856533,0.000816,55959.0,55958.0,1.97897189]
[1725611856798,0.000816,55959.0,55958.0,0.49739903]
[1725611857018,0.000816,55959.0,55958.0,0.31869403]
[1725611857452,0.01760713,55959.0,55958.0,0.32469403]
[1725611857711,0.03439834,55959.0,55958.0,0.32469403]
[1725611857932,0.03439834,55959.0,55958.0,0.30969403]
[1725611858165,0.03439834,55959.0,55958.0,0.32369403]
[1725611858351,0.01760713,55959.0,55958.0,0.32369403]
[1725611858615,0.01760713,55959.0,55958.0,0.31769403]
[1725611858843,0.21310004,55959.0,55958.0,0.33069403]
[1725611859086,0.03439804,55959.0,55958.0,0.31769403]
[1725611859555,0.01760713,55959.0,55958.0,0.33169403]
[1725611859769,0.03439821,55959.0,55958.0,0.33169403]
[1725611860216,0.58050421,55959.0,55958.0,0.20389403]
[1725611860513,0.22310021,55959.0,55958.0,0.19589403]
[1725611860725,0.22310021,55959.0,55958.0,0.20789403]
[1725611861402,0.04439821,55959.0,55958.0,0.38659903]
[1725611861618,0.02760713,55959.0,55958.0,0.38659903]
[1725611861847,0.01760713,55959.0,55958.0,0.38659903]
[1725611862067,0.01760713,55959.0,55958.0,0.51089903]
[1725611862358,0.01760713,55959.0,55958.0,1.40122999]
[1725611862563,0.01760713,55959.0,55958.0,1.78163999]
[1725611863053,0.000816,55959.0,55958.0,1.78163999]
[1725611863301,0.000816,55959.0,55958.0,2.13904999]
[1725611864238,0.000816,55959.0,55958.0,2.11304999]
[1725611864475,0.000816,55959.0,55958.0,1.57112903]
[1725611864689,0.000816,55959.0,55958.0,1.58512903]
[1725611864913,0.000816,55959.0,55958.0,1.57112903]
[1725611865130,0.000816,55959.0,55958.0,1.74663999]
[1725611865766,0.000816,55959.0,55958.0,1.76063999]
[1725611865984,0.000816,55959.0,55958.0,1.74663999]
[1725611866934,0.000816,55959.0,55958.0,1.73263999]
[1725611867133,0.000816,55959.0,55958.0,1.74663999]
[1725611867345,0.000816,55959.0,55958.0,1.76063999]
[1725611867587,0.000816,55959.0,55958.0,1.74663999]
[1725611867799,0.000816,55959.0,55958.0,1.73263999]
[1725611868044,0.000816,55959.0,55958.0,1.22771903]
[1725611869332,0.000816,55959.0,55958.0,1.21371903]
[1725611869803,0.000816,55959.0,55958.0,1.19971903]
[1725611870221,0.000816,55959.0,55958.0,1.21371903]
[1725611871320,0.000816,55959.0,55958.0,1.22771903]
[1725611872875,0.357337,55970.0,55960.0,0.357397]
[1725611873142,0.357229,55987.0,55962.0,0.357384]
[1725611873143,0.178677,55967.0,55962.0,0.357384]
[1725611873389,0.178683,55965.0,55962.0,0.178691]
[1725611873601,0.19547017,55966.0,55963.0,0.18818404]
[1725611873842,0.357349,55968.0,55963.0,0.18818404]
[1725611874051,0.178678,55967.0,55963.0,0.18818404]
[1725611874263,0.19546784,55967.0,55963.0,0.18818404]
[1725611874486,0.0167897,55966.0,55963.0,0.18818404]
[1725611874703,0.357336,55970.0,55965.0,0.178683]
[1725611874704,0.178672,55969.0,55965.0,0.178683]
[1725611874928,0.0167891,55968.0,55965.0,0.178683]
[1725611875153,0.0167891,55967.0,55966.0,0.00948856]
[1725611875372,0.0167891,55967.0,55966.0,0.07356369]
[1725611875649,0.0167891,55967.0,55966.0,0.08305225]
[1725611876529,0.0167891,55967.0,55966.0,0.26173125]
[1725611877197,0.0167891,55967.0,55966.0,0.27373125]
[1725611877411,0.0167891,55967.0,55966.0,0.10905225]
[1725611877641,0.0167891,55967.0,55966.0,0.28773125]
[1725611878275,0.0167891,55967.0,55966.0,0.10905225]
[1725611878716,0.357327,55972.0,55966.0,0.10905225]
[1725611878924,0.178672,55969.0,55966.0,0.03548856]
[1725611879142,0.357337,55970.0,55966.0,0.03548856]
[1725611879143,0.357348,55968.0,55966.0,0.03548856]
[1725611879359,0.178674,55968.0,55966.0,0.03548856]
[1725611879813,0.178674,55968.0,55966.0,0.02348856]
[1725611880033,0.178674,55968.0,55966.0,0.02948856]
[1725611880274,0.357323,55972.0,55966.0,0.02948856]
[1725611880275,0.178676,55967.0,55966.0,0.02948856]
[1725611880492,0.9202443,55967.0,55966.0,0.01548856]
[1725611880792,1.0212443,55967.0,55966.0,0.00948856]
[1725611881001,0.178686,55964.0,55960.0,0.178698]
[1725611881221,0.27192207,55965.0,55960.0,0.178698]
[1725611881437,0.178686,55964.0,55961.0,0.00949936]
[1725611881875,0.27192207,55965.0,55961.0,0.00949936]
[1725611882340,0.2055516,55964.0,55959.0,0.178701]
[1725611882566,0.5629316,55963.0,55962.0,0.0094972]
[1725611882781,0.56293156,55963.0,55962.0,0.07446869]
[1725611882974,0.178693,55962.0,55958.0,0.303005]
[1725611883457,0.178693,55962.0,55960.0,0.014]
[1725611883675,0.536086,55961.0,55960.0,0.028]
[1725611883889,0.97154698,55961.0,55953.0,0.0963]
[1725611884130,0.357404,55959.0,55958.0,0.014]
[1725611884353,1.12024718,55959.0,55958.0,0.028]
[1725611884570,0.536182,55951.0,55949.0,0.001632]
[1725611884784,0.56304698,55951.0,55949.0,0.001632]
[1725611885064,0.92050198,55951.0,55949.0,0.001632]
[1725611885281,0.56304698,55951.0,55949.0,0.001632]
[1725611886617,0.56304698,55951.0,55950.0,0.009632]
[1725611886829,0.92050198,55951.0,55950.0,0.009632]
[1725611887037,1.02270198,55951.0,55950.0,0.001632]
[1725611887501,1.02270198,55951.0,55950.0,0.010632]
[1725611887725,1.02270198,55951.0,55950.0,0.021632]
[1725611887951,1.02270198,55951.0,55950.0,0.012632]
[1725611888206,1.12275178,55951.0,55950.0,0.009632]
[1725611888470,1.24925178,55951.0,55950.0,0.020632]
[1725611888680,1.24925178,55951.0,55950.0,0.009632]
[1725611889189,1.24925178,55951.0,55950.0,0.021632]
[1725611889438,1.24925178,55951.0,55950.0,0.001632]
[1725611889866,1.24925178,55951.0,55950.0,0.010632]
[1725611890702,1.24925178,55951.0,55950.0,0.021632]
[1725611890900,1.13953415,55951.0,55950.0,0.001632]
[1725611891150,1.13953415,55951.0,55950.0,0.010632]
[1725611891371,1.13953415,55951.0,55950.0,0.022632]
[1725611891803,0.04364735,55951.0,55950.0,0.299363]
[1725611892013,0.01678237,55951.0,55950.0,0.656825]
[1725611892256,0.01678237,55951.0,55950.0,1.09757668]
[1725611892507,0.01678237,55951.0,55950.0,0.74011468]
[1725611892715,0.19550937,55951.0,55950.0,0.10592168]
[1725611892938,0.01678237,55951.0,55950.0,0.10592168]
[1725611893156,0.91041937,55951.0,55950.0,0.03215515]
[1725611893371,0.93727249,55951.0,55950.0,0.03215515]
[1725611893587,1.39477729,55951.0,55950.0,0.03215515]
[1725611893795,1.51597729,55951.0,55950.0,0.013632]
[1725611894067,2.00109284,55951.0,55950.0,0.013632]
[1725611894304,2.10109284,55951.0,55950.0,0.021632]
[1725611894512,2.45854784,55951.0,55950.0,0.021632]
[1725611894781,2.45854784,55951.0,55950.0,0.013632]
[1725611895013,2.53870444,55951.0,55950.0,0.010632]
[1725611895233,2.55070444,55951.0,55950.0,0.010632]
[1725611895461,2.47154784,55951.0,55950.0,0.010632]
[1725611895681,2.55170444,55951.0,55950.0,0.010632]
[1725611896148,2.46954784,55951.0,55950.0,0.010632]
[1725611896361,2.46954784,55951.0,55950.0,0.001632]
[1725611896625,2.1301023,55951.0,55950.0,0.001632]
[1725611897295,2.1331023,55951.0,55950.0,0.002632]
[1725611897509,2.13610162,55951.0,55950.0,0.003632]
[1725611897724,2.13310162,55951.0,55950.0,0.002632]
[1725611897960,2.12910162,55951.0,55950.0,0.001632]
[1725611898175,2.13510162,55951.0,55950.0,0.001632]
[1725611898901,2.13710162,55951.0,55950.0,0.001632]
[1725611899335,2.13510162,55951.0,55950.0,0.001632]
[1725611900900,2.09146681,55951.0,55950.0,0.001632]
[1725611901108,2.1183188,55951.0,55950.0,0.001632]
[1725611901317,2.13509785,55951.0,55950.0,0.001632]
[1725611902401,2.49255285,55951.0,55950.0,0.001632]
[1725611902636,2.48855285,55951.0,55950.0,0.001632]
[1725611903061,2.44792181,55951.0,55950.0,0.001632]
[1725611903938,2.49355712,55951.0,55950.0,0.001632]
[1725611904834,2.49355709,55951.0,55950.0,0.001632]
[1725611907231,2.49155709,55951.0,55950.0,0.001632]
[1725611907951,2.49355709,55951.0,55950.0,0.001632]
[1725611908373,2.44992181,55951.0,55950.0,0.001632]
[1725611908557,2.4935562,55951.0,55950.0,0.001632]
[1725611910172,2.5035562,55951.0,55950.0,0.001632]
[1725611910178,2.54919691,55951.0,55950.0,0.001632]
[1725611910808,2.5035562,55951.0,55950.0,0.001632]
[1725611911763,2.52155463,55951.0,55950.0,0.001632]
[1725611912168,2.52855463,55951.0,55950.0,0.002632]
[1725611912382,2.88800963,55951.0,55950.0,0.003632]
[1725611914600,2.96454255,55951.0,55950.0,0.003632]
[1725611915485,2.96454255,55951.0,55949.0,0.001632]
[1725611915486,2.460703,55950.0,55949.0,0.001632]
[1725611915683,3.08949738,55950.0,55949.0,0.001632]
[1725611915884,3.16609588,55950.0,55949.0,0.001632]
[1725611916320,3.08949738,55950.0,55949.0,0.001632]
[1725611916565,3.1661028,55950.0,55949.0,0.001632]
[1725611916777,3.1731028,55950.0,55949.0,0.002632]
[1725611917218,0.45394,55947.0,55946.0,0.001634]
[1725611917428,1.31298394,55947.0,55946.0,0.001634]
[1725611917636,2.15094594,55947.0,55946.0,0.001634]
[1725611917899,2.86590794,55947.0,55946.0,0.001634]
[1725611918751,2.87090794,55947.0,55946.0,0.002634]
[1725611918974,2.87090794,55947.0,55946.0,0.001634]
[1725611919230,2.88590794,55947.0,55946.0,0.003634]
[1725611919486,2.88590794,55947.0,55946.0,0.002634]
[1725611919487,2.88090794,55947.0,55946.0,0.002634]
[1725611919918,2.87190794,55947.0,55946.0,0.001634]
[1725611920154,2.82827512,55947.0,55946.0,0.001634]
[1725611920362,2.87193227,55947.0,55946.0,0.001634]
[1725611920991,2.88293227,55947.0,55946.0,0.002634]
[1725611921413,2.87793227,55947.0,55946.0,0.002634]
[1725611921643,2.88793227,55947.0,55946.0,0.003634]
[1725611922512,2.87593227,55947.0,55946.0,0.002634]
[1725611922717,2.9525079,55947.0,55946.0,0.002634]
[1725611922935,2.9645079,55947.0,55946.0,0.003634]
[1725611923150,2.91298024,55947.0,55946.0,0.003634]
[1725611923587,2.98956024,55947.0,55946.0,0.003634]
[1725611924275,2.94590309,55947.0,55946.0,0.003634]
[1725611924496,2.98955887,55947.0,55946.0,0.003634]
[1725611925548,3.04297774,55947.0,55946.0,0.003634]
[1725611926641,2.98955887,55947.0,55946.0,0.003634]
[1725611927617,3.06968717,55947.0,55946.0,0.003634]
[1725611928299,2.93138717,55947.0,55946.0,0.003634]
[1725611928504,2.74635887,55947.0,55946.0,0.003634]
[1725611928719,2.82660071,55947.0,55946.0,0.003634]
[1725611929426,2.98325887,55947.0,55946.0,0.003634]
[1725611929676,3.11680604,55947.0,55946.0,0.003634]
[1725611930108,3.0887858,55947.0,55946.0,0.003634]
[1725611930564,2.98325255,55947.0,55946.0,0.003634]
[1725611931228,3.17175255,55947.0,55946.0,0.003634]
[1725611931876,2.93485255,55947.0,55946.0,0.003634]
[1725611932508,2.74635255,55947.0,55946.0,0.003634]
[1725611934517,2.98785255,55947.0,55946.0,0.003634]
[1725611934930,3.06626377,55947.0,55946.0,0.003634]
[1725611935594,1.968426,55939.0,55938.0,0.001632]
[1725611935806,2.48016564,55939.0,55938.0,0.001632]
[1725611936016,2.52381881,55939.0,55938.0,0.001632]
[1725611936294,2.52181881,55939.0,55938.0,0.001632]
[1725611936501,2.62896012,55939.0,55938.0,0.001632]
[1725611937182,2.63196012,55939.0,55938.0,0.001632]
[1725611937805,2.63296012,55939.0,55938.0,0.001632]
[1725611938438,2.65974545,55939.0,55938.0,0.001632]
[1725611938657,2.66174545,55939.0,55938.0,0.001632]
[1725611939576,2.52781881,55939.0,55938.0,0.001632]
[1725611940516,2.94222682,55939.0,55938.0,0.001632]
[1725611940747,1.9954935,55938.0,55937.0,1e-06]
[1725611941032,2.85922302,55938.0,55937.0,1e-06]
[1725611941260,2.69831143,55938.0,55937.0,1e-06]
[1725611941696,2.8591898,55938.0,55937.0,1e-06]
[1725611941899,2.69831143,55938.0,55937.0,1e-06]
[1725611942366,2.70631143,55938.0,55937.0,0.001001]
[1725611942634,2.86720764,55938.0,55937.0,0.001001]
[1725611942863,2.70632927,55938.0,55937.0,0.001001]
[1725611943077,2.30675677,55938.0,55937.0,0.106401]
[1725611943514,2.31375677,55938.0,55937.0,0.107401]
[1725611943731,1.94621877,55938.0,55937.0,0.107401]
[1725611943947,2.05343984,55938.0,55937.0,0.107401]
[1725611944152,1.94621877,55938.0,55937.0,0.107401]
[1725611944362,1.86963877,55938.0,55937.0,0.107401]
[1725611944873,1.97685984,55938.0,55937.0,0.107401]
[1725611945507,2.05358779,55938.0,55937.0,0.107401]
[1725611945969,1.51210077,55938.0,55937.0,0.107401]
[1725611946415,1.86963877,55938.0,55937.0,0.107401]
[1725611946646,2.05356209,55938.0,55937.0,0.107401]
[1725611947759,1.94634102,55938.0,55937.0,0.107401]
[1725611948191,1.94634102,55938.0,55937.0,0.002001]
[1725611948425,0.180798,55929.0,55928.0,0.00164]
[1725611948651,2.16623294,55929.0,55928.0,0.00164]
[1725611948930,2.62285522,55929.0,55928.0,0.01121074]
[1725611949128,2.86978843,55929.0,55928.0,0.00164]
[1725611949339,2.91348687,55929.0,55928.0,0.00164]
[1725611949800,3.10236539,55929.0,55928.0,0.00564]
[1725611950044,3.10236539,55929.0,55928.0,0.00164]
[1725611950519,2.94850675,55929.0,55928.0,0.00264]
[1725611950729,3.10236539,55929.0,55928.0,0.00164]
[1725611951187,3.11336539,55929.0,55928.0,0.00264]
[1725611951389,3.10236539,55929.0,55928.0,0.00164]
[1725611951616,2.95550675,55929.0,55928.0,0.00164]
[1725611952271,2.89780831,55929.0,55928.0,0.00164]
[1725611952507,2.96817725,55929.0,55928.0,0.00164]
[1725611952712,2.98017725,55929.0,55928.0,0.00164]
[1725611952953,2.98017725,55929.0,55913.0,0.0044152]
[1725611952954,0.357666,55918.0,55914.0,0.1027]
[1725611953185,1.1280439,55915.0,55914.0,0.1027]
[1725611953413,2.04626397,55915.0,55914.0,0.1027]
[1725611953633,2.09267701,55915.0,55914.0,0.1027]
[1725611954287,2.17303201,55915.0,55914.0,0.1027]
[1725611954494,2.14623144,55915.0,55914.0,0.1027]
[1725611955569,2.09267701,55915.0,55914.0,0.1027]
[1725611956682,2.09467701,55915.0,55914.0,0.1027]
[1725611957765,2.12119993,55915.0,55914.0,0.1027]
[1725611958482,2.4351854,55915.0,55914.0,0.1027]
[1725611958729,2.47888842,55915.0,55914.0,0.1027]
[1725611958973,2.45199415,55915.0,55914.0,0.1027]
[1725611959209,2.47888815,55915.0,55914.0,0.1027]
[1725611960152,2.12120315,55915.0,55914.0,0.1027]
[1725611962041,2.0775004,55915.0,55914.0,0.1027]
[1725611962272,2.12120505,55915.0,55914.0,0.1027]
[1725611963846,2.12120336,55915.0,55914.0,0.2369]
[1725611965458,2.0775004,55915.0,55914.0,0.238532]
[1725611965726,2.10439441,55915.0,55914.0,0.238532]
[1725611965955,2.12120316,55915.0,55914.0,0.238532]
[1725611967065,2.12120316,55915.0,55914.0,0.001632]
[1725611967958,1.70852926,55915.0,55914.0,0.001632]
[1725611968161,2.12120316,55915.0,55914.0,0.001632]
[1725611970825,2.12138316,55915.0,55914.0,0.001632]
[1725611971269,1.88755126,55915.0,55914.0,0.001632]
[1725611971477,1.52986626,55915.0,55914.0,0.236332]
[1725611971954,1.76369654,55915.0,55914.0,0.236332]
[1725611972588,0.68240814,55915.0,55914.0,0.2392975]
[1725611972797,1.04009314,55915.0,55914.0,0.2392975]
[1725611973004,0.22472314,55915.0,55914.0,0.24889854]
[1725611973226,0.22472314,55915.0,55914.0,0.2392975]
[1725611973435,0.58240814,55915.0,55914.0,0.2392975]
[1725611973681,0.55551513,55915.0,55914.0,0.2392975]
[1725611973890,0.91320013,55915.0,55914.0,0.2392975]
[1725611974099,0.91120013,55915.0,55914.0,0.2392975]
[1725611974305,0.93808865,55915.0,55914.0,0.2392975]
[1725611974936,0.9131976,55915.0,55914.0,0.2392975]
[1725611975164,0.94008656,55915.0,55914.0,0.2392975]
[1725611975383,0.93808656,55915.0,55914.0,0.2392975]
[1725611975610,0.93808671,55915.0,55914.0,0.24889854]
[1725611975875,0.93908671,55915.0,55914.0,0.24889854]
[1725611976296,0.58140171,55915.0,55914.0,0.24889854]